[Event "Karel Janecek Open 2025"]
[Site "Prague"]
[Date "2025.03.07"]
[Round "9.11"]
[White "Noe, Christopher"]
[Black "Prazak, Daniel"]
[Result "1-0"]
[Annotator "TA"]
[ECO "D81"]
[WhiteElo "2511"]
[BlackElo "2319"]
[PlyCount "79"]
[EventDate "2025.02.21"]
[EventType "swiss"]
[EventCountry "CZE"]
[SourceTitle "playchess.com"]
[Source "ChessBase"]
[SourceQuality "1"]
[TimeControl "40/5400+30:1800+30"]

{[%evp 11,79,0,40,-8,-7,-13,4,-27,-5,-17,-12,-19,-8,-15,0,2,66,62,83,62,114,71,83,76,78,77,76,77,127,138,131,137,131,133,158,154,159,137,154,147,169,120,175,149,297,189,213,221,204,198,205,185,270,272,271,266,293,305,320,296,385,375,378,410,414,414,404,397,443,437]} 1. d4 {[%emt 0:00:51]} Nf6 {[%emt 0:00:29]} 2. c4 {[%emt 0:00:40]} g6 {[%emt 0:00:18]} 3. Nc3 {[%emt 0:00:13]} d5 {[%emt 0:00:28]} 4. Qa4+ {[%emt 0:03:42]} Bd7 {[%emt 0:00:16]} 5. Qb3 {[%emt 0:00:05]} dxc4 {[%emt 0:00:23]} 6. Qxc4 {[%emt 0:00:06]} Be6 {[%emt 0:00:20]} 7. Qd3 {[%emt 0:02:58] [#] D81: Grünfeld: 4 Qb3.} (7. Qb5+ $14 Bd7 8. Qb3 (8. Qxb7 Nc6 $15)) 7... c5 $1 $11 {[%emt 0:00:35]} 8. dxc5 {[%emt 0:06:27]} (8. Nf3 Na6) 8... Nc6 {[%emt 0:02:42]} 9. e4 $146 {[%emt 0:07:27] The position is equal.} (9. Nf3 Bg7 10. Ng5 Qxd3 11. exd3 Bf5 12. Be3 Rd8 13. O-O-O Ng4 14. h3 Nxe3 15. fxe3 Bh6 16. h4 {0-1 Knox,R-Schiller,W CServe email 1996}) 9... Bg7 {[%emt 0:02:22]} 10. Qxd8+ {[%emt 0:01:19]} Rxd8 {[%emt 0:00:18]} 11. Bb5 {[%emt 0:00:42]} O-O {[%emt 0:03:36][%mdl 1024] [#] Black sacrificed a pawn Black has compensation.} 12. Nf3 {[%emt 0:01:25]} Nb4 {[%emt 0:13:10]} 13. O-O {[%emt 0:01:13]} Nd7 {[%emt 0:17:39]} (13... a6 $11 14. Be2 Nd3) 14. Bg5 $1 $14 {[%emt 0:11:12]} f6 {[%emt 0:01:26]} 15. Be3 {[%emt 0:00:06]} a6 {[%emt 0:07:36]} ({Better is} 15... Nc2 $14) 16. Be2 {[%emt 0:14:45]} Bf7 {[%emt 0:05:38]} 17. Rfc1 {[%emt 0:01:37] Prevents Nc2.} f5 {[%emt 0:09:52]} 18. Ng5 {[%emt 0:29:57]} Ne5 {[%emt 0:06:55][%cal Of5f4]} 19. Nxf7 {[%emt 0:00:47]} Rxf7 {[%emt 0:00:10]} (19... Kxf7 $142 20. exf5 gxf5) 20. exf5 $16 {[%emt 0:00:50]} gxf5 {[%emt 0:00:52] Strongly threatening ...f4.} 21. Rd1 {[%emt 0:07:28]} Rff8 {[%emt 0:03:09]} 22. Bg5 {[%emt 0:00:19]} Nec6 {[%emt 0:06:13]} 23. a3 {[%emt 0:03:17]} Nc2 {[%emt 0:01:16]} 24. Rac1 $36 {[%emt 0:00:02][%mdl 2048] White is on the roll.} N2d4 {[%emt 0:01:33]} 25. Bc4+ {[%emt 0:00:05]} Kh8 {[%emt 0:00:12]} 26. Kf1 {[%emt 0:01:00]} (26. Re1 $18) 26... Rd7 {[%emt 0:01:41]} (26... h6 $16 27. Be3 f4) 27. Na4 {[%emt 0:00:37][%cal Bc3a4,Ba4b6,Bb6c4,Bc4d6][%mdl 32]} Na5 {[%emt 0:02:09]} (27... f4 $16 {keeps fighting.} 28. Re1 Rf5) 28. Ba2 {[%emt 0:00:29]} Rc7 {[%emt 0:00:58]} 29. b4 {[%emt 0:00:32]} Nac6 {[%emt 0:00:30]} 30. Nb6 {[%emt 0:00:18]} e6 {[%emt 0:02:31][%cal Be7e6,Be6e5,Be5e4][%mdl 32]} 31. Nc4 {[%emt 0:02:07]} Nb5 {[%emt 0:00:51]} (31... f4 $142 32. Nd6 Rd7) 32. Rd3 $18 {[%emt 0:00:54]} e5 {[%emt 0:01:01]} 33. Rcd1 {[%emt 0:00:43]} Nbd4 {[%emt 0:00:39]} 34. Nd6 {[%emt 0:00:27]} e4 {[%emt 0:00:36]} 35. Rh3 {[%emt 0:00:10]} Be5 {[%emt 0:00:49]} 36. Nc4 {[%emt 0:00:34] Strongly threatening Nxe5.} Bg7 {[%emt 0:00:26]} 37. Bf4 {[%emt 0:00:12]} Rd7 {[%emt 0:00:45][%cal Bc7d7,Bd7d8,Bd8e8][%mdl 32]} 38. Nb6 {[%emt 0:00:05]} Rdd8 {[%emt 0:00:07]} 39. Bc7 {[%emt 0:00:26] This pair of bishops is nice.} Rde8 {[%emt 0:00:11]} 40. Nd7 {[%emt 0:01:11] Weighted Error Value: White=0.13 (very precise) /Black=0.27 (precise)   Mistake:       	White=1     	Black=6      Inaccurate:     	White=3     	Black=1      OK:         	White=15    	Black=8      Best:        	White=1     	Black=1      Strong:       	White=1     	---        Brilliant:      	---       	Black=1} 1-0

[Event "Karel Janecek Open 2025"]
[Site "Prague"]
[Date "2025.03.07"]
[Round "9.13"]
[White "Filgueiras, Nathan Felipe"]
[Black "Zhao, Yuanhe"]
[Result "1/2-1/2"]
[Annotator "TA"]
[ECO "B36"]
[WhiteElo "2335"]
[BlackElo "2466"]
[PlyCount "69"]
[EventDate "2025.02.21"]
[EventType "swiss"]
[EventCountry "CZE"]
[SourceTitle "playchess.com"]
[Source "ChessBase"]
[SourceQuality "1"]
[TimeControl "40/5400+30:1800+30"]

{[%evp 20,69,59,40,39,33,38,23,44,47,50,58,36,14,32,20,52,31,28,20,27,19,20,2,71,69,54,48,62,34,58,32,31,28,89,99,81,56,50,8,12,7,13,9,50,32,32,6,5,12,81,81]} 1. e4 {[%emt 0:08:01]} c5 {[%emt 0:00:10]} 2. Nf3 {[%emt 0:00:07]} Nc6 {[%emt 0:00:52]} 3. d4 {[%emt 0:00:05]} cxd4 {[%emt 0:00:04]} 4. Nxd4 {[%emt 0:00:04]} g6 {[%emt 0:00:26]} 5. c4 {[%emt 0:00:56]} Nf6 {[%emt 0:00:30]} 6. Nc3 {[%emt 0:00:13]} d6 {[%emt 0:00:07]} 7. Be2 {[%emt 0:01:44]} Nxd4 {[%emt 0:00:22]} 8. Qxd4 {[%emt 0:00:07]} Bg7 {[%emt 0:00:03]} 9. Be3 {[%emt 0:02:32]} O-O {[%emt 0:00:35]} 10. Qd3 {[%emt 0:01:11]} Be6 {[%emt 0:04:03]} 11. O-O {[%emt 0:00:39]} Nd7 {[%emt 0:01:49] B36: Sicilian: Maroczy Bind: Gurgenidze System.} 12. b3 {[%emt 0:02:49]} Nc5 {[%emt 0:06:26]} 13. Qc2 {[%emt 0:00:17]} Qa5 {[%emt 0:06:29] White has an edge.} 14. Bd2 {[%emt 0:03:31]} Qb6 {[%emt 0:00:14]} 15. Rad1 {[%emt 0:10:41]} a5 {[%emt 0:00:11]} 16. Be3 $146 {[%emt 0:03:06]} ({Predecessor:} 16. Nd5 Bxd5 17. exd5 Nd7 18. Bf3 Ne5 19. Be2 Nd7 20. Bf3 Ne5 21. Be2 Nd7 22. a4 {0-1 Graham,S-De Peindray D'Ambelle,P W-ch WS/O/1171 email 2019}) 16... Rfc8 {[%emt 0:00:42]} 17. Nb5 {[%emt 0:03:24]} Bd7 {[%emt 0:03:59]} 18. a4 {[%emt 0:05:52]} Qd8 {[%emt 0:01:28]} 19. f4 {[%emt 0:01:46][%cal Oe4e5]} Bxb5 {[%emt 0:08:01]} 20. axb5 {[%emt 0:01:13][%cal Oe4e5]} Qc7 {[%emt 0:00:08]} 21. Kh1 {[%emt 0:03:52]} Nd7 {[%emt 0:04:48]} (21... a4 $11 22. b4 Nd7) 22. Bg4 $16 {[%emt 0:01:35][%cal Ob5b6] Black is weak on the light squares} Rd8 {[%emt 0:05:03]} 23. Bxd7 {[%emt 0:09:50]} Qxd7 {[%emt 0:02:30]} 24. e5 {[%emt 0:02:46]} Rdc8 {[%emt 0:08:48]} 25. exd6 {[%emt 0:02:08]} exd6 {[%emt 0:00:05]} 26. Rd5 {[%emt 0:03:44]} Qe7 {[%emt 0:03:41]} (26... Qe6 $11 {keeps the balance.} 27. Qd3 Re8) 27. Bb6 {[%emt 0:05:01]} Re8 {[%emt 0:01:53]} 28. h3 {[%emt 0:00:55] White has more active pieces.} Bf8 {[%emt 0:01:04]} 29. Bd4 {[%emt 0:04:12]} Qe2 {[%emt 0:02:06]} 30. Qxe2 {[%emt 0:00:36]} Rxe2 {[%emt 0:00:06]} 31. Ra1 {[%emt 0:01:24]} f5 {[%emt 0:03:55]} 32. b6 {[%emt 0:02:54]} Rd2 {[%emt 0:02:14]} 33. Bc3 {[%emt 0:05:43]} (33. Rdxa5 $2 {too greedy.} Rxa5 34. Rxa5 Rxd4 $19) 33... Rxd5 {[%emt 0:00:08]} 34. cxd5 {[%emt 0:00:01]} Be7 {[%emt 0:04:36]} (34... Ra6 $11) 35. Rxa5 {[%emt 0:09:49] Weighted Error Value: White=0.11 (very precise) /Black=0.18 (very precise)   Mistake:       	---       	Black=3      Inaccurate:     	White=4     	Black=2      OK:         	White=10    	Black=8      Best:        	White=1     	---} ({Much weaker is} 35. Bxa5 Ra6 $11) 1/2-1/2

[Event "Karel Janecek Open 2025"]
[Site "Prague"]
[Date "2025.03.07"]
[Round "9.14"]
[White "Druska, Juraj"]
[Black "Chittka, Julius"]
[Result "1-0"]
[Annotator "TA"]
[ECO "D32"]
[WhiteElo "2442"]
[BlackElo "2313"]
[PlyCount "71"]
[EventDate "2025.02.21"]
[EventType "swiss"]
[EventCountry "CZE"]
[SourceTitle "playchess.com"]
[Source "ChessBase"]
[SourceQuality "1"]
[TimeControl "40/5400+30:1800+30"]

{[%evp 22,71,24,19,25,18,39,28,32,33,61,64,56,50,114,114,115,113,118,127,123,118,140,134,204,137,135,100,145,117,120,114,121,42,162,160,151,164,309,294,332,320,402,400,458,448,450,444,516,515,505,519]} 1. c4 {[%emt 0:04:13]} e6 {[%emt 0:01:02]} 2. Nf3 {[%emt 0:00:27]} d5 {[%emt 0:00:09]} 3. e3 {[%emt 0:00:27]} Nf6 {[%emt 0:00:24]} 4. Nc3 {[%emt 0:00:08]} Bd6 {[%emt 0:00:49]} 5. b3 {[%emt 0:00:21]} c5 {[%emt 0:01:20]} 6. cxd5 {[%emt 0:00:14]} exd5 {[%emt 0:00:06]} 7. Bb2 {[%emt 0:02:07]} O-O {[%emt 0:00:25]} 8. d4 {[%emt 0:00:40]} Nc6 {[%emt 0:00:29]} 9. Be2 {[%emt 0:01:05]} cxd4 {[%emt 0:01:12]} 10. Nxd4 {[%emt 0:00:16]} Nxd4 {[%emt 0:00:21] The main line 10...Nxd4 scores better than 10...Re8.} 11. Qxd4 {[%emt 0:00:09]} Re8 {[%emt 0:00:07]} 12. O-O {[%emt 0:00:12]} Be5 {[%emt 0:01:01] D32: Tarrasch Defence: Sidelines and lines without g3.} 13. Qd3 {[%emt 0:00:12]} Bg4 {[%emt 0:07:19]} 14. Bxg4 {[%emt 0:00:29]} Nxg4 {[%emt 0:00:06] White has an edge.} 15. h3 {[%emt 0:00:10]} Nf6 {[%emt 0:00:21]} 16. Rfd1 $146 {[%emt 0:01:33]} (16. Na4 Bxb2 17. Nxb2 Rc8 18. Rac1 Qe7 19. Rc2 Rc7 20. Rfc1 Rec8 21. Na4 h6 22. Qf5 Rxc2 23. Rxc2 Rxc2 24. Qxc2 {½-½ Cordova,E (2531)-Wang,I (2335) North American op 34th 2024 (2)}) 16... Rc8 {[%emt 0:09:01]} 17. Rab1 {[%emt 0:00:10][%cal Rc3d5]} Qa5 {[%emt 0:44:01]} (17... Bxc3 $14 18. Bxc3 Ne4) 18. Nxd5 $16 {[%emt 0:49:16]} Rcd8 {[%emt 0:04:00][%cal Rd8d5]} (18... Qxa2 $2 19. Bxe5 Rxe5 20. Ra1 $18) 19. Bxe5 {[%emt 0:01:32]} Nxd5 {[%emt 0:02:41]} 20. Bd4 {[%emt 0:01:18] White is more active.} Ne7 {[%emt 0:09:27]} 21. Qe2 {[%emt 0:18:25]} Ng6 {[%emt 0:03:54]} 22. Rbc1 {[%emt 0:02:00]} b6 {[%emt 0:04:32] Dodges Rc5} (22... Nf8 $16 23. Bc3 Rxd1+ 24. Qxd1 Qa3) 23. Rc4 {[%emt 0:04:20]} Qd5 {[%emt 0:03:01]} 24. Qg4 {[%emt 0:01:05]} Re6 {[%emt 0:03:38]} 25. Rcc1 {[%emt 0:02:11][%cal Od4b6]} h5 {[%emt 0:00:58]} 26. Qg3 {[%emt 0:00:49]} Red6 {[%emt 0:01:21]} 27. Rc7 {[%emt 0:00:45]} (27. Kh2 $16 {[%cal Od4b6] Threatens to win with Bxb6!.} Qf5 28. Rd2) 27... Ne5 {[%emt 0:00:58] [#]} 28. Re7 $1 $18 {[%emt 0:03:48]} (28. Qxe5 $2 Qxe5 29. Bxe5 Rxd1+ 30. Kh2 R8d2 $19) (28. Rxa7 $2 Rg6 29. Kh2 (29. Qxe5 $2 Qxg2#) (29. e4 $2 Qxe4 30. Ra4 Rxg3 $19) 29... Rxg3 (29... h4 $2 30. Qxg6 Nxg6 31. Kg1 $19) 30. fxg3 h4 $19) 28... Ng6 {[%emt 0:01:01]} 29. Rxa7 $40 {[%emt 0:00:45][%mdl 128] White wants a kill.} Ne5 {[%emt 0:00:23] [#]} (29... h4 {was called for.} 30. Qg4 Ne5) 30. Re7 $1 {[%emt 0:00:46]} ({Not} 30. Qxe5 Qxe5 31. Bxe5 Rxd1+ 32. Kh2 Rf1 $19) 30... Ng6 {[%emt 0:00:15] [#]} 31. Rc1 $1 {[%emt 0:01:22]} Qf5 {[%emt 0:00:58][%cal Od6d4] [#]} (31... Rf8 32. Kh2) 32. Re8+ $3 {[%emt 0:01:12][%mdl 512]} Kh7 {[%emt 0:00:31] And now ...Rxd4 would win.} (32... Rxe8 33. Qxd6) 33. Rxd8 {[%emt 0:00:56] White is clearly winning.} Rxd8 {[%emt 0:00:07]} 34. Bxb6 {[%emt 0:01:37]} Rd2 {[%emt 0:00:59]} 35. Rc5 {[%emt 0:01:56]} Qb1+ {[%emt 0:00:15]} 36. Kh2 {[%emt 0:00:02] Weighted Error Value: White=0.08 (flawless) /Black=0.36  Mistake:       	White=1     	Black=4      Inaccurate:     	White=1     	Black=2      OK:         	White=12    	Black=5      Best:        	White=4     	---        Strong:       	White=2     	---} 1-0

[Event "Karel Janecek Open 2025"]
[Site "Prague"]
[Date "2025.03.07"]
[Round "9.15"]
[White "Baenziger, Fabian"]
[Black "Walek, Petr"]
[Result "1-0"]
[Annotator "TA"]
[ECO "E49"]
[WhiteElo "2430"]
[BlackElo "2279"]
[PlyCount "167"]
[EventDate "2025.02.21"]
[EventType "swiss"]
[EventCountry "CZE"]
[SourceTitle "playchess.com"]
[Source "ChessBase"]
[SourceQuality "1"]
[TimeControl "40/5400+30:1800+30"]

{[%evp 27,167,34,37,45,41,37,41,31,62,66,57,0,61,57,70,58,81,74,112,103,107,77,77,28,145,126,144,119,144,52,39,72,49,39,64,77,72,64,58,77,82,72,65,45,59,55,56,36,36,31,107,92,121,112,128,117,112,130,103,117,93,73,73,73,73,73,77,58,77,77,77,73,73,73,79,79,77,77,79,78,85,85,85,50,86,85,93,86,93,88,85,85,95,86,86,75,102,80,174,174,243,243,1058,1047,1222,1217,999,894,4859,1057,4859,4859,4859,4859,4852,4850,3431,1886,4852,4852,4816,4815,4212,4090,3308,2470,29968,29970,29969,29971,29968,29971,29958,11975,29975,29975,29974,29974,29987,29983,29984,29985]} 1. d4 {[%emt 0:00:04]} Nf6 {[%emt 0:00:04]} 2. c4 {[%emt 0:00:08]} e6 {[%emt 0:00:04]} 3. Nc3 {[%emt 0:02:11]} Bb4 {[%emt 0:00:23]} 4. e3 {[%emt 0:00:06]} O-O {[%emt 0:00:39]} 5. Bd3 {[%emt 0:00:06]} d5 {[%emt 0:01:33]} 6. Nge2 {[%emt 0:01:26]} c5 {[%emt 0:09:40]} 7. cxd5 {[%emt 0:00:48]} exd5 {[%emt 0:00:35]} 8. a3 {[%emt 0:00:30]} Bxc3+ {[%emt 0:01:54]} 9. bxc3 {[%emt 0:00:07]} b6 {[%emt 0:00:36]} 10. f3 {[%emt 0:00:57]} Re8 {[%emt 0:05:02]} 11. O-O {[%emt 0:00:32]} Ba6 {[%emt 0:00:31]} 12. Ng3 {[%emt 0:09:39]} Bxd3 {[%emt 0:06:27]} 13. Qxd3 {[%emt 0:00:49]} Nc6 {[%emt 0:00:32][%cal Bb8c6,Bc6e7,Be7g6][%mdl 32]} 14. Bb2 {[%emt 0:01:46]} c4 {[%emt 0:18:52]} 15. Qd2 {[%emt 0:04:34] E49: Nimzo-Indian: Rubinstein: 5 Bd3 d5 6 a3 Bxc3+ 7 bxc3.} h5 {[%emt 0:01:30]} 16. Qf2 {[%emt 0:09:13]} Qd7 {[%emt 0:05:01] Prevents e4} 17. Rae1 $1 {[%emt 0:04:08] White is slightly better.} Ne7 {[%emt 0:13:08]} 18. e4 {[%emt 0:07:15] Wards off Nf5} h4 {[%emt 0:02:21]} 19. Ne2 $146 {[%emt 0:00:05]} (19. Nh1 $1 $14) (19. Nh1 Ng6 20. e5 Nh5 21. Bc1 Nhf4 22. Bxf4 Nxf4 23. Qxh4 Nd3 24. Re3 Re6 25. f4 {1-0 Shankland,S (2679)-Sanikidze,T (2497) Olympiad-42 Baku 2016 (10.4)}) 19... h3 {[%emt 0:01:50]} (19... dxe4 $11 20. fxe4 Ng6) 20. Nf4 {[%emt 0:03:00]} dxe4 {[%emt 0:05:46]} 21. fxe4 {[%emt 0:03:16][%cal Bf3e4,Be4e5][%mdl 32]} hxg2 {[%emt 0:01:24]} 22. Nxg2 {[%emt 0:07:43]} Ng6 {[%emt 0:01:17]} 23. e5 {[%emt 0:01:27]} Nd5 {[%emt 0:00:19]} 24. Qg3 {[%emt 0:05:14]} Re6 {[%emt 0:03:02]} 25. Re4 {[%emt 0:00:52]} (25. h4 $16) 25... Nf6 {[%emt 0:10:40]} 26. Re3 $16 {[%emt 0:07:43]} Nd5 {[%emt 0:00:05]} 27. Ref3 {[%emt 0:00:03]} Rf8 {[%emt 0:00:19]} 28. Bc1 {[%emt 0:00:03]} ({White should try} 28. Qg4 $1 $16) 28... Nxc3 $14 {[%emt 0:03:54]} 29. Rxc3 {[%emt 0:01:17]} Qxd4+ {[%emt 0:00:02]} 30. Qe3 {[%emt 0:07:08]} Rd8 {[%emt 0:02:02][%cal Bf8d8,Bd8d4,Bd4g4,Bg4e4,Be4e3][%mdl 32]} 31. Qxd4 {[%emt 0:06:05]} Rxd4 {[%emt 0:00:02]} 32. Nf4 {[%emt 0:00:11]} Rxe5 {[%emt 0:02:22]} 33. Nxg6 {[%emt 0:00:20]} Rg4+ {[%emt 0:02:35]} 34. Kh1 {[%emt 0:03:12]} fxg6 {[%emt 0:00:08]} 35. Rc2 {[%emt 0:00:04]} Rge4 {[%emt 0:01:33]} 36. Kg2 {[%emt 0:05:22]} b5 {[%emt 0:01:02]} 37. Bf4 {[%emt 0:01:14]} Rf5 {[%emt 0:00:58]} 38. Bg3 {[%emt 0:00:58]} Rxf1 {[%emt 0:00:39]} ({Black should play} 38... Rd4 $14) 39. Kxf1 {[%emt 0:00:03][%mdl 4096] Endgame KRB-KR} Re3 {[%emt 0:00:34] [#]} 40. a4 {[%emt 0:02:25][%mdl 512]} a6 {[%emt 0:00:32]} 41. axb5 $1 {[%emt 0:32:25]} axb5 {[%emt 0:30:17]} 42. Rb2 $1 {[%emt 0:00:22]} Rf3+ {[%emt 0:00:00]} 43. Ke2 {[%emt 0:00:00]} Rf5 {[%emt 0:00:00]} 44. Kd2 {[%emt 0:00:00]} Kf7 {[%emt 0:00:00]} 45. Kc3 {[%emt 0:00:00]} Ke6 {[%emt 0:00:00]} 46. Kb4 {[%emt 0:00:00]} Rd5 {[%emt 0:00:00]} 47. Ra2 {[%emt 0:00:00]} Kf5 {[%emt 0:00:00]} 48. Ra7 {[%emt 0:00:00]} g5 {[%emt 0:00:00]} 49. Rxg7 {[%emt 0:00:00] White has more active pieces.} Ke4 {[%emt 0:00:00]} 50. Re7+ {[%emt 0:00:00]} Kf3 {[%emt 0:00:00]} 51. Re1 {[%emt 0:00:00]} Kg2 {[%emt 0:00:00]} 52. Re3 {[%emt 0:00:00]} Rf5 {[%emt 0:00:00]} 53. Re2+ {[%emt 0:00:00]} Kf3 {[%emt 0:00:00]} 54. Rd2 {[%emt 0:00:00]} Ke3 {[%emt 0:00:22]} 55. Rd6 {[%emt 0:00:00]} Kf3 {[%emt 0:00:14]} 56. Kc3 {[%emt 0:00:00]} Ke4 {[%emt 0:01:05]} 57. Rd4+ $1 {[%emt 0:00:00]} Ke3 {[%emt 0:00:45]} 58. Rd1 {[%emt 0:00:00]} Ke4 {[%emt 0:01:10]} 59. Re1+ {[%emt 0:00:00]} Kd5 {[%emt 0:01:43]} 60. Kb4 {[%emt 0:00:34]} Kd4 {[%emt 0:00:12]} 61. Bd6 {[%emt 0:00:11][%cal Od6c5]} Kd3 {[%emt 0:01:37]} 62. Bc5 {[%emt 0:04:02] And now Re3+ would win.} Kd2 {[%emt 0:01:21] [#]} (62... Rf3 $16) 63. Rg1 $1 $18 {[%emt 0:00:04]} c3 {[%emt 0:00:17] [#]} (63... Rf3 {might work better.} 64. Kxb5 (64. Rg2+ Kd1 $18) 64... c3) 64. Rg2+ $1 {[%emt 0:02:51]} (64. Kxb5 c2 $11) 64... Kd1 $2 {[%emt 0:02:05]} (64... Kd3 65. Rg3+ (65. Kxb5 c2 $11) 65... Kd2 66. Be3+ (66. Kxb5 c2 $11) (66. Rxc3 Rf4+ 67. Kb3 Rf5 $18) 66... Ke2 67. Kxc3 (67. Rxg5 Rf1 $16) (67. Bxg5 c2 $16) 67... b4+ 68. Kxb4 g4) 65. Be3 $1 {[%emt 0:00:57]} ({Not} 65. Kxb5 c2 66. Rg1+ Kd2 67. Rg2+ Kc3 $11 (67... Kd1 68. Rg1+ Kd2 69. Rg2+ Kc3 70. Rg1 $11)) 65... c2 {[%emt 0:01:14]} 66. Rd2+ {[%emt 0:03:29]} (66. Rxg5 Rf3 67. Rd5+ Ke2 $18) 66... Ke1 {[%emt 0:00:14]} 67. Rxc2 {[%emt 0:00:03]} Re5 {[%emt 0:00:44]} 68. Bc5 {[%emt 0:00:39]} g4 {[%emt 0:00:39]} 69. Bd6 {[%emt 0:00:27]} Rd5 {[%emt 0:00:15]} 70. Bg3+ {[%emt 0:00:05]} Kf1 {[%emt 0:00:19]} 71. Rc5 {[%emt 0:01:13]} Rd3 {[%emt 0:00:12]} 72. Rg5 {[%emt 0:01:02]} Rd4+ {[%emt 0:00:25]} 73. Kxb5 {[%emt 0:00:50]} Kg2 {[%emt 0:00:05]} 74. Kc5 {[%emt 0:00:17]} Ra4 {[%emt 0:00:07]} 75. Kd6 {[%emt 0:00:08]} Kh3 {[%emt 0:00:12]} 76. Ke5 {[%emt 0:00:19] Threatening mate with Kf5.} Ra5+ {[%emt 0:00:35]} 77. Kf4 {[%emt 0:00:12]} Ra4+ {[%emt 0:00:11]} 78. Kf5 {[%emt 0:00:04]} Ra5+ {[%emt 0:00:18]} 79. Be5 {[%emt 0:01:02]} Ra4 {[%emt 0:00:19]} 80. Rg8 {[%emt 0:00:28]} (80. Rh5+ $142 Kg2 81. Rh4 Ra7 82. Rxg4+ Kf3 83. Rg3+ Ke2 84. h4 Rh7 85. Bf6) 80... Rb4 {[%emt 0:00:23]} 81. Rb8 {[%emt 0:00:47] White mates.} Ra4 {[%emt 0:00:30]} 82. Rb3+ {[%emt 0:00:06]} Kh4 {[%emt 0:00:37]} 83. Bf6+ {[%emt 0:00:04]} Kh5 {[%emt 0:00:09]} 84. Rb8 {[%emt 0:00:08] Weighted Error Value: White=0.09 (flawless) /Black=0.13 (very precise)   Mistake:       	White=3     	Black=6      Inaccurate:     	White=1     	Black=5      OK:         	White=21    	Black=21     Best:        	White=3     	Black=5      Strong:       	White=7     	---        Brilliant:      	White=1     	---} 1-0